Cogmind - Beta 11 X8 @@@ ROGUE MODE // 2021.10.21 @ 20:40:52 Player: Plexion Result: Self-destructed Performance ------------- Evolutions (1) 500 Regions Visited (4) 800 Robots Destroyed (6) 30 Value Destroyed (161) 161 Prototype IDs (23) 460 Alien Tech Used (0) 0 Bonus (300) 300 TOTAL SCORE: 2251 Bonus ------- Aligned with FarCom 300 Cogmind --------- Core Integrity 182/400 Matter 34/300 Energy 46/100 System Corruption 0% Temperature Warm (194) Movement Rolling (90) Location -9/Exiles Parts ------- > --- POWER (1) -------- (None) > --- PROPULSION (3) --- Armored Wheel Armored Wheel > --- UTILITY (2) ------ Improved Targeting Computer > --- WEAPON (3) ------- Medium Laser > --- INVENTORY (5) ---- AWS/Thermal Peak State ------------ > --- POWER ------------ Ion Engine > --- PROPULSION ------- Light Treads Light Treads Improved Treads > --- UTILITY ---------- Improved Targeting Computer > --- WEAPON ----------- AWS/Thermal Heavy Assault Rifle > --- INVENTORY -------- Light Treads Particle Gun Assault Rifle [Rating: 25] Favorites ----------- Power Light Ion Engine Engine Light Ion Engine Propulsion Armored Wheel Treads Improved Treads Wheel Armored Wheel Utility Improved Targeting Computer Storage Small Storage Unit Processor Improved Targeting Computer Protection Light Armor Plating Weapon Assault Rifle Energy Gun Particle Gun Ballistic Gun Assault Rifle Launcher Rocket Launcher Build | -11 -10 -9 -9 -9 ------- Run | Scr Mat Mat Min Exi Slots Evolved 2 | . . 2 . . Power . | . . . . . Propulsion 1 | . . 1 . . Utility . | . . . . . Weapon 1 | . . 1 . . Parts Attached 33 | 6 2 8 1 16 Power 3 | 1 1 . . 1 Engine 3 | 1 1 . . 1 Core . | . . . . . Reactor . | . . . . . Propulsion 13 | 2 . 4 1 6 Treads 6 | . . 2 1 3 Leg . | . . . . . Wheel 7 | 2 . 2 . 3 Hover . | . . . . . Flight . | . . . . . Utility 4 | 1 . 1 . 2 Device . | . . . . . Storage 2 | 1 . . . 1 Processor 1 | . . 1 . . Hackware . | . . . . . Protection 1 | . . . . 1 Artifact . | . . . . . Weapon 13 | 2 1 3 . 7 Energy Gun 6 | . . 2 . 4 Energy Cannon . | . . . . . Ballistic Gun 6 | 2 1 1 . 2 Ballistic Cannon . | . . . . . Launcher 1 | . . . . 1 Special Weapon . | . . . . . Impact Weapon . | . . . . . Slashing Weapon . | . . . . . Piercing Weapon . | . . . . . Special Melee Weapon . | . . . . . Unidentified Prototypes . | . . . . . Parts Lost 11 | . . . . 11 Power 2 | . . . . 2 Propulsion 4 | . . . . 4 Utility 1 | . . . . 1 Weapon 4 | . . . . 4 Highest Loss Streak 6 | . . . . 6 Average Slot Usage (%) 92 | . 84 88 100 93 Engine 10 | . 13 11 11 9 Treads 11 | . . 11 11 14 Wheel 19 | . 28 22 22 17 Storage 9 | . 14 11 11 8 Processor 8 | . . . 11 11 Energy Gun 9 | . . 11 11 11 Ballistic Gun 21 | . 28 22 22 20 Naked Turns . | . . . . . Heaviest Build 32 | 12 12 16 16 32 Greatest Support 63 | 32 32 32 24 63 Greatest Overweight (x) 1 | . . . . 1 Average Overweight (x) . | . . . . . Largest Inventory Capacity 15 | 8 8 8 8 15 Average Capacity 9 | 7 8 8 8 10 Most Carried 13 | 4 4 8 8 13 Average Carried 6 | 1 4 4 7 8 Final Capacity 8 | 8 8 8 8 5 Final Carried 8 | 4 4 8 8 2 Class Distribution -------------------- 75% | Gunner 24% | Mutant Dominant Class ---------------- Mutant | -10/Materials Gunner | -9/Materials Gunner | -9/Mines Gunner | -9/Exiles Resources | -11 -10 -9 -9 -9 ----------- Run | Scr Mat Mat Min Exi Matter Collected 448 | 205 42 148 53 . Remotely . | . . . . . Salvage Created 255 | . 42 212 . 1 Parts 20 | . 3 17 . . Haulers Intercepted 1 | . . 1 . . Recyclers Shooed . | . . . . . Parts Field Recycled . | . . . . . Retrieved Matter . | . . . . . Parts Self-Destructed . | . . . . . Prevented . | . . . . . Kills | -11 -10 -9 -9 -9 ------- Run | Scr Mat Mat Min Exi Combat Hostiles Destroyed 7 | . 1 3 . 3 Guns 4 | . 1 3 . . AOE 3 | . . . . 3 Classes Destroyed 5 | . 1 3 . 1 Worker 1 | . . 1 . . Hauler 1 | . . 1 . . Grunt 2 | . 1 1 . . Sentry 2 | . . 2 . . Assembled 3 | . . . . 3 Best Kill Streak 3 | . 1 3 . 3 Combat Bots Only 3 | . 1 1 . 3 Max Kills in Single Turn 2 | . 1 1 . 2 Gunslinging . | . . . . . Exploded 2 | . . . . 2 Melee . | . . . . . Uniques/NPCs Destroyed . | . . . . . Combat | -11 -10 -9 -9 -9 -------- Run | Scr Mat Mat Min Exi Damage Taken 1483 | . 12 150 . 1321 Core 218 | . . 25 . 193 Absorbed by Shields . | . . . . . Core Remaining (%) 100 | 100 100 . . . Volleys Fired 53 | . 2 11 . 40 Largest 3 | . 2 3 . 3 Hottest 138 | . 40 108 . 138 Shots Fired 161 | . 4 33 . 124 Gun 157 | . 4 33 . 120 Cannon . | . . . . . Launcher 4 | . . . . 4 Special . | . . . . . Kinetic 65 | . 4 22 . 39 Thermal 92 | . . 11 . 81 Explosive 4 | . . . . 4 Electromagnetic . | . . . . . Robot Hit Streak 23 | . 3 8 . 23 Robot Miss Streak 3 | . 1 2 . 3 Penetration Max . | . . . . . Secondary Targets . | . . . . . Autonomous 50 | . . . . 50 Shots Hit Robots 124 | . 3 22 . 99 Core Hits 33 | . 2 9 . 22 Critical Kills . | . . . . . Critical Parts Destroyed 1 | . . . . 1 Critical Strikes 3 | . . . . 3 Burn 1 | . . . . 1 Destroy 2 | . . . . 2 Melee Attacks . | . . . . . Impact . | . . . . . Slashing . | . . . . . Piercing . | . . . . . Sneak Attacks . | . . . . . Combat Hostiles . | . . . . . Follow-up Attacks . | . . . . . Damage Inflicted 1236 | . 28 287 . 921 Guns 1075 | . 28 287 . 760 Cannons . | . . . . . Explosions 161 | . . . . 161 Melee . | . . . . . Ramming . | . . . . . Kinetic 671 | . 28 229 . 414 Thermal 404 | . . 58 . 346 Explosive 161 | . . . . 161 Electromagnetic . | . . . . . Impact . | . . . . . Slashing . | . . . . . Piercing . | . . . . . Highest Corruption 2 | . 2 . . . Average Corruption 2 | . 2 . . . Corruption Purged . | . . . . . Effects 1 | . 1 . . . Message Errors 1 | . 1 . . . Overload Shots . | . . . . . Overflow Damage . | . . . . . Projectiles . | . . . . . Explosions . | . . . . . Melee . | . . . . . Knockbacks . | . . . . . Impact . | . . . . . Kinetic . | . . . . . Secondary . | . . . . . Self-Inflicted Damage 27 | . . . . 27 Shots 2 | . . . . 2 Rammed . | . . . . . Targets Rammed . | . . . . . Kicked . | . . . . . Crushed . | . . . . . Highest Temperature 345 | . . 112 . 345 Average Temperature 124 | . . 47 . 162 Received Heat Transfer 63 | . 6 57 . . Effects 1 | . . . . 1 Interference 1 | . . . . 1 Siege Activations . | . . . . . Robots Corrupted . | . . . . . Combat Hostiles . | . . . . . Parts Fried . | . . . . . Impact Corruptions . | . . . . . Robots Melted . | . . . . . Combat Hostiles . | . . . . . Parts Melted . | . . . . . Heat Transferred 778 | . . 148 . 630 Parts Sabotaged . | . . . . . Parts Stolen . | . . . . . Parts Stripped . | . . . . . Power Chain Reactions . | . . . . . Missiles Intercepted . | . . . . . Alert | -11 -10 -9 -9 -9 ------- Run | Scr Mat Mat Min Exi Peak Influence 154 | . 55 154 60 . Initial 60 | . . 22 60 . Average 49 | . 21 84 60 . Maximum Alert Level . | . . . . . Low Security (%) 100 | 100 100 100 100 . Level 1 . | . . . . . Level 2 . | . . . . . Level 3 . | . . . . . Level 4 . | . . . . . Level 5 . | . . . . . High Security . | . . . . . Max Security . | . . . . . Squads Dispatched 4 | . 2 2 . . Investigation 1 | . . 1 . . Extermination . | . . . . . Reinforcement 3 | . 2 1 . . Assault . | . . . . . Garrison . | . . . . . Intercept . | . . . . . Construction Impeded . | . . . . . Haulers Reinforced . | . . . . . Active Scanning Responses . | . . . . . Cargo Convoy Interrupts . | . . . . . Stealth | -11 -10 -9 -9 -9 --------- Run | Scr Mat Mat Min Exi Distress Signals 2 | . . 2 . . Communications Jammed . | . . . . . Distress Signals . | . . . . . Times Spotted 11 | . 4 3 . 4 Peak Tracking Total 9 | . 2 1 . 9 Tactical Retreats . | . . . . . Traps | -11 -10 -9 -9 -9 ------- Run | Scr Mat Mat Min Exi Traps Triggered 2 | . 2 . . . Indirectly . | . . . . . Trap Hack Attempts . | . . . . . Triggered . | . . . . . Disarmed . | . . . . . Reprogrammed . | . . . . . Reused . | . . . . . Traps Extracted . | . . . . . Installed . | . . . . . Triggered . | . . . . . Exploded 3 | . . . . 3 Machines | -11 -10 -9 -9 -9 ---------- Run | Scr Mat Mat Min Exi Machines Disabled 7 | . . . . 7 Max in Single Turn 2 | . . . . 2 Machines Sabotaged . | . . . . . Garrisons Compromised . | . . . . . Overloaded Fab Kills . | . . . . . Hacking | -11 -10 -9 -9 -9 --------- Run | Scr Mat Mat Min Exi Machines Accessed 5 | . 1 2 . 2 Terminals 3 | . 1 2 . . Fabricators . | . . . . . Repair Stations . | . . . . . Recycling Units . | . . . . . Scanalyzers . | . . . . . Garrison Access . | . . . . . Total Hacks 7 | . 2 3 . 2 Successful 4 | . 2 . . 2 Failed 3 | . . 3 . . Catastrophic 2 | . . 2 . . Database Lockouts . | . . . . . Manual 2 | . 1 . . 1 Terminals 5 | . 2 3 . . Fabricators . | . . . . . Repair Stations . | . . . . . Recycling Units . | . . . . . Scanalyzers . | . . . . . Garrison Access . | . . . . . Terminal Hacks 4 | . 2 . . 2 Record 2 | . 1 . . 1 Robot Analysis 1 | . 1 . . . EX-Prototype ID Bank 1 | . . . . 1 Fabricator Hacks . | . . . . . Repair Station Hacks . | . . . . . Recycling Unit Hacks . | . . . . . Scanalyzer . | . . . . . Garrison Access Hacks . | . . . . . Unauthorized Hacks . | . . . . . Terminals . | . . . . . Fabricators . | . . . . . Repair Stations . | . . . . . Recycling Units . | . . . . . Scanalyzers . | . . . . . Garrison Access . | . . . . . Data Cores Recovered . | . . . . . Used . | . . . . . Hacking Detections 2 | . . 2 . . Full Trace Events 1 | . . 1 . . Feedback Events . | . . . . . Feedback Blocked . | . . . . . Robot Schematics Acquired . | . . . . . Robots Built . | . . . . . Authchips . | . . . . . Time . | . . . . . Total Robot Build Rating . | . . . . . Part Schematics Acquired . | . . . . . Parts Built . | . . . . . Authchips . | . . . . . Time . | . . . . . Total Part Build Rating . | . . . . . Parts Repaired . | . . . . . Time . | . . . . . Parts Recycled . | . . . . . Recycled Matter . | . . . . . Retrieved Matter . | . . . . . Retrieved Components . | . . . . . Parts Scanalyzed . | . . . . . Part Schematics Acquired . | . . . . . Parts Damaged . | . . . . . Bothacking | -11 -10 -9 -9 -9 ------------ Run | Scr Mat Mat Min Exi Used RIF Installer . | . . . . . Robots Hacked . | . . . . . Non-combat . | . . . . . Combat . | . . . . . Robot Hacks Applied . | . . . . . Relay Couplers Released . | . . . . . Robots Rewired . | . . . . . Allies Hacked . | . . . . . Hacks Repelled . | . . . . . Allies | -11 -10 -9 -9 -9 -------- Run | Scr Mat Mat Min Exi Total Allies . | . . . . . Largest Group . | . . . . . Highest-Rated Group . | . . . . . Highest-Rated Ally . | . . . . . Total Orders . | . . . . . Ally Attacks . | . . . . . Total Damage . | . . . . . Kills . | . . . . . Allies Corrupted . | . . . . . Allies Melted . | . . . . . Intel | -11 -10 -9 -9 -9 ------- Run | Scr Mat Mat Min Exi Robot Analysis Total 1 | . 1 . . . Derelict Logs Recovered 2 | . . . 2 . Drone Launches . | . . . . . Drone Recoveries . | . . . . . Exploration | -11 -10 -9 -9 -9 ------------- Run | Scr Mat Mat Min Exi Turns Passed 1200 | 71 138 177 129 685 Spaces Moved 952 | 62 129 130 117 514 Core 7 | 7 . . . . Treads 44 | . . . 20 24 Legs . | . . . . . Wheels 901 | 55 129 130 97 490 Hover . | . . . . . Flight . | . . . . . Fastest Speed 50 | 50 100 90 90 90 Average Speed 100 | 94 100 97 101 101 Slowest Speed 160 | 100 100 100 160 160 Overloaded Moves . | . . . . . Propulsion Burnouts . | . . . . . Robots Hopped . | . . . . . Cave-ins Triggered . | . . . . . Exploration Rate (%) 31 | 3 30 16 42 67 Regions Visited 4 Branch Regions 2 Pre-discovered Areas 2 | . . . 1 1 Known Exits Taken . | . . . . . Unknown Exits Taken 4 | 1 1 1 1 . Scrap Searched 1 | . . . 1 . Spaces Dug . | . . . . . Terrain Destroyed 24 | . . . . 24 Melee . | . . . . . Projectile 3 | . . . . 3 AOE 21 | . . . . 21 Terrain Rammed . | . . . . . Walls Destroyed . | . . . . . Machines Disabled . | . . . . . Actions | -11 -10 -9 -9 -9 --------- Run | Scr Mat Mat Min Exi Total 1101 | 71 133 155 128 614 Wait 35 | . 1 . 6 28 Move 948 | 61 128 129 116 514 Hop . | . . . . . Pick Up 15 | 4 . 4 2 5 Fast Attach 12 | 6 2 1 . 3 Attach 8 | . . 2 . 6 Detach 2 | . . . . 2 Swap 13 | . . 5 1 7 Drop 15 | . . 3 3 9 Fire 53 | . 2 11 . 40 Melee . | . . . . . Ram . | . . . . . Kick . | . . . . . Crush . | . . . . . Escape Stasis . | . . . . . Rewire . | . . . . . Trap . | . . . . . Miscellaneous . | . . . . . Route ------- -11/Scrapyard -10/Materials -9/Materials -9/Mines -9/Exiles History --------- Turn | Location | Event 6 | -11/Scrapyard | Discovered new exit (range 15) 72 | -11/Scrapyard | Entered Materials 155 | -10/Materials | Discovered new exit (range 16) 210 | -10/Materials | Entered another Materials area 210 | -9/Materials | Evolved 2 slots: Propulsion x1, Weapon x1 381 | -9/Materials | Met 8R-AWN 381 | -9/Materials | Discovered new exit (range 6) 387 | -9/Materials | Entered Mines 388 | -9/Mines | Followed 8R-AWN into the Mines 395 | -9/Mines | Joined a pair of Derelicts in attacking an 0b10 outpost 451 | -9/Mines | Learned location of Storage (-9) 481 | -9/Mines | Met a Derelict bent on vengeance 486 | -9/Mines | Learned 2 Materials zone layouts 494 | -9/Mines | Build established: Gunner 500 | -9/Mines | Assembled infested the area 513 | -9/Mines | Discovered new exit (range 5) 516 | -9/Mines | Entered Exiles 539 | -9/Exiles | Welcomed by 8R-AWN 554 | -9/Exiles | Met EX-HEX 590 | -9/Exiles | Met EX-DEC 607 | -9/Exiles | Learned location of Zion (-6) 710 | -9/Exiles | Met EX-BIN 721 | -9/Exiles | Aligned with FarCom system 722 | -9/Exiles | Given EX-Vault access code 746 | -9/Exiles | Opened EX-Vault 753 | -9/Exiles | Found AWS/Thermal 776 | -9/Exiles | Warned to stay clear of 0b10 Research branches 831 | -9/Exiles | Learned about 8R-AWN's background 968 | -9/Exiles | Attacked by the Exiles 1139 | -9/Exiles | Lost 6 parts (2p2n1u1w) 1183 | -9/Exiles | Core integrity fell below 50% 1193 | -9/Exiles | Lost 3 parts (2n1w) 1201 | -9/Exiles | Self-destructed Last Messages --------------- 01175_ Penetrated by HV Slug. 01175_ HV Slug penetrates Wall. 01178_ 8R-AWN suffers critical hit (Burn). 01179_ Penetrated by HV Slug. 01179_ HV Slug penetrates Wall. 01182_ Penetrated by HV Slug. 01182_ HV Slug penetrates Wall. 01186_ Penetrated by HV Slug. 01186_ HV Slug penetrates Earth. 01190_ Wall collapses. 01193_ Penetrated by HV Slug. 01193_ Particle Gun destroyed. 01193_ HV Slug penetrates Earth. 01196_ Penetrated by HV Slug. 01196_ HV Slug penetrates Earth. 01198_ Overheating: System interference. 01198_ Med. Laser temporarily disabled. 01200_ Penetrated by HV Slug. 01200_ Hvy. Assault Rifle destroyed. 01200_ HV Slug penetrates Earth. Map ----- +----------------------------------------------------+ | ?????????????????????????????????????????????????? | | ?????????????????????????????????????????????????? | | ?????????????????????????????????????????????????? | | ?????????????????????????????????????????????????? | | ?????????????????????????????????????????????????? | | ?????????????????????????????????????????????????? | | ?????????????????????????????????????????????????? | | ?????????????????????????????????????????????????? | | ?????????????????????????????????????????????????? | | ?????????????????????????????????????????????????? | | ?????????????????????????????????????????????????? | | ?????????????????????????????????????????????????# | | ?????????????????????????#???????????????????????" | | ????????????????????????? ???????????????????????" | | ????????????????????????? ??????????? ?????????#"" | | ????????????????????????? ?????????? ??????????#" | | ????????????????????????? ????????# ???????????#" | | ????????????????????????# #??????# #???????????#"" | | ????????????????????????# #?????# #??????????????" | | ??????????????????#?????# #????# #???????????????? | | ??????????????????# ????# #?### #????????????????? | | ???????????????????# ???# # # #?????????????????? | | ????????????????????# ###;#;# #??????????????????? | | ??????? ######??????#;!!! ;#???????????????????? | | ??????? #""#??????# ! #????????????????????? | | ??????? ??????# @ "#????????????????????? | | ??????" #????## g #????????????????????? | | ??????? ####; #????????????????????? | | ???????# ## ""#????????????????????? | | ????????# # " ###????????????????????? | | ???????????# #??????????????????????? | | ??????????????# ##???????????????? "???? | | ??????????????## # ##???????????? ""???? | | ???????????##### #?????????? "????? | | ????????# !!""""" # #???????? #????? | | ????????#! # ##???### ###??# | | ????????#! "#####X# #"###" | | ????????#! # % % """"" | | ????????# !""""""### ###" "" "" | | ????????#########??????### " " | | ?????????????????????????? | | ??????????????????????????##### | | ??????????????????????????????## | | ???????????????????????????????## | | ????????????????????????????????##" | | ?????????????????????????????????#"" | | ????????????????????????????????##" | | ????????????????????????????????#"" " | | ????????????????????????????????#""" """ | | ???????????????????????????????#""" """# | +----------------------------------------------------+ Best States ------------- Heat Dissipation 28 Energy Generation 10 Energy Capacity 250 Matter Stores 300 Matter Capacity 300 Sight Range 16 Terrain Scan Density 10 Armor Coverage 150 Evasion (%) 42 Targeting Accuracy 6 Recoil Reduction 3 Item Schematics ----------------- None Robot Schematics ------------------ None Fabricated ------------ Nothing Alien Tech Used ----------------- None Achievements -------------- None Challenges ------------ None Game ------ Seed TachyonMeleeCompactor Manual? 0 Play Time 00:10:30 Cumulative 237.6 hours Start 2021.10.21 @ 20:31:05 End 2021.10.21 @ 20:40:52 Sessions 1 Manual Loads 0 Difficulty Rogue Special Mode None Game No. 312 Rogue 225 Adventurer 87 Explorer 0 Win Type - Total 5 Types 3/0/1/1/0/0/0/0/0 Lore% 70 Gallery% 79 Achievement% 67 Wizard Run 0 Options --------- ASCII 0 Keyboard 1 Movement Numpad Keybinds 0 Fullscreen 1 Font 18/Smallcaps Map View 76x50 Tactical HUD 1 Map Filters NONE Filters NONE Steam 1 RUN: 3512b125-7d78-474b-b2bd-a529f84fcb6b